fUSD/lending_fUSD_20240827
["ID","MTS","AMOUNT","RATE_DAILY","PERIOD"]
[336259252,1724748645225,-500.0,0.00010993,2]
[336259254,1724748645234,-500.0,0.00010993,2]
[336259256,1724748645243,-500.0,0.00010993,2]
[336259258,1724748645252,-500.0,0.00010993,2]
[336259260,1724748645261,-500.0,0.00010993,2]
[336259262,1724748645271,-500.0,0.00010993,2]
[336259264,1724748645280,-500.0,0.00010993,2]
[336259266,1724748645289,-873.48,0.00010993,2]
[336259268,1724748645299,-500.0,0.00010993,2]
[336259270,1724748645308,-500.0,0.00010993,2]
[336259272,1724748645317,-500.0,0.00010993,2]
[336259274,1724748645326,-500.0,0.00010993,2]
[336259276,1724748645335,-500.0,0.00010993,2]
[336259278,1724748645344,-655.59,0.00010993,2]
[336259280,1724748645353,-500.2953443,0.00010993,2]
[336259282,1724748645361,-500.0,0.00010993,2]
[336259284,1724748645371,-500.0,0.00010993,2]
[336259285,1724748645380,-500.0,0.00010993,2]
[336259286,1724748645389,-500.0,0.00010993,2]
[336259287,1724748645398,-500.0,0.00010993,2]
[336259288,1724748645407,-626.91,0.00010993,2]
[336259289,1724748645421,-1014.627274,0.00010993,2]
[336259291,1724748645430,-500.0,0.00010993,2]
[336259293,1724748645439,-6370.29,0.00010993,2]
[336259295,1724748645448,-500.0,0.00010993,2]
[336259297,1724748645458,-500.0,0.00010993,2]
[336259299,1724748645467,-500.0,0.00010993,2]
[336259301,1724748645476,-500.0,0.00010994,2]
[336259303,1724748645486,-500.0,0.00010994,2]
[336259305,1724748645497,-500.0,0.00010994,2]
[336259307,1724748645506,-500.0,0.00010994,2]
[336259309,1724748645517,-848.31,0.00010994,2]
[336259311,1724748645526,-500.0,0.00010994,2]
[336259313,1724748645535,-500.0,0.00010994,2]
[336259315,1724748645545,-500.0,0.00010994,2]
[336259317,1724748645554,-500.0,0.00010994,2]
[336259319,1724748645563,-500.0,0.00010994,2]
[336259321,1724748645572,-500.0,0.00010994,2]
[336259323,1724748645582,-500.0,0.00010994,2]
[336259325,1724748645592,-500.0,0.00010994,2]
[336259327,1724748645602,-500.0,0.00010994,2]
[336259329,1724748645611,-500.0,0.00010994,2]
[336259331,1724748645622,-500.0,0.00010994,2]
[336259333,1724748645631,-504.43,0.00010994,2]
[336259335,1724748645640,-500.0,0.00010994,2]
[336259337,1724748645650,-500.0,0.00010994,2]
[336259339,1724748645659,-500.0,0.00010994,2]
[336259341,1724748645668,-500.0,0.00010994,2]
[336259343,1724748645677,-875.66,0.00010994,2]
[336259345,1724748645687,-500.0,0.00010994,2]
[336259348,1724748645697,-500.0,0.00010994,2]
[336259350,1724748645707,-500.0,0.00010994,2]
[336259351,1724748645719,-500.0,0.00010994,2]
[336259355,1724748645729,-500.0,0.00010994,2]
[336259357,1724748645740,-523.59,0.00010994,2]
[336259359,1724748645750,-500.0,0.00010994,2]
[336259361,1724748645759,-506.37229206,0.00010994,2]
[336259363,1724748645769,-500.0,0.00010994,2]
[336259365,1724748645778,-500.0,0.00010994,2]
[336259367,1724748645788,-500.0,0.00010994,2]
[336259368,1724748645797,-500.0,0.00010994,2]
[336259370,1724748645807,-185.2569059,0.00010994,2]
[336259372,1724748645816,-581.41071421,0.00010994,2]
[336259374,1724748645825,-400.0,0.00010994,2]
[336259376,1724748645835,-500.0,0.00010994,2]
[336259378,1724748645844,-500.0,0.00010994,2]
[336259380,1724748645853,-500.0,0.00010994,2]
[336259382,1724748645863,-500.0,0.00010994,2]
[336259384,1724748645872,-500.0,0.00010994,2]
[336259386,1724748645882,-520.72263405,0.00010994,2]
[336259388,1724748645891,-500.0,0.00010994,2]
[336259390,1724748645900,-500.0,0.00010994,2]
[336259392,1724748645909,-183.87468133,0.00010994,2]
[336259393,1724748645919,-500.0,0.00010994,2]
[336259395,1724748645929,-519.26,0.00010994,2]
[336259397,1724748645939,-500.0,0.00010994,2]
[336259399,1724748645948,-500.0,0.00010994,2]
[336259401,1724748645958,-546.15668022,0.00010994,2]
[336259403,1724748645967,-500.0,0.00010994,2]
[336259405,1724748645978,-500.0,0.00010994,2]
[336259407,1724748645987,-500.0,0.00010994,2]
[336259409,1724748645996,-500.0,0.00010994,2]
[336259411,1724748646006,-500.0,0.00010994,2]
[336259413,1724748646015,-500.0,0.00010994,2]
[336259415,1724748646025,-500.0,0.00010994,2]
[336259417,1724748646034,-500.0,0.00010994,2]
[336259419,1724748646044,-500.0,0.00010994,2]
[336259420,1724748646053,-500.0,0.00010994,2]
[336259422,1724748646063,-500.0,0.00010994,2]
[336259424,1724748646072,-500.0,0.00010994,2]
[336259426,1724748646082,-514.0,0.00010994,2]
[336259428,1724748646091,-500.0,0.00010994,2]
[336259430,1724748646101,-500.0,0.00010994,2]
[336259432,1724748646110,-500.0,0.00010994,2]
[336259434,1724748646120,-500.0,0.00010994,2]
[336259436,1724748646129,-500.0,0.00010994,2]
[336259438,1724748646139,-500.0,0.00010994,2]
[336259440,1724748646147,-500.0,0.00010994,2]
[336259442,1724748646157,-501.60762487,0.00010994,2]
[336259444,1724748646166,-500.0,0.00010994,2]
[336259445,1724748646175,-654.58,0.00010994,2]
[336259447,1724748646185,-500.0,0.00010994,2]
[336259449,1724748646193,-500.0,0.00010994,2]
[336259451,1724748646203,-687.52,0.00010994,2]
[336259453,1724748646213,-500.0,0.00010994,2]
[336259455,1724748646222,-500.0,0.00010994,2]
[336259457,1724748646231,-500.0,0.00010994,2]
[336259459,1724748646241,-833.33,0.00010994,2]
[336259461,1724748646250,-556.74,0.00010994,2]
[336259463,1724748646260,-500.0,0.00010994,2]
[336259465,1724748646269,-609.28709448,0.00010994,2]
[336259468,1724748646279,-500.0,0.00010994,2]
[336259469,1724748646288,-360.50264404,0.00010994,2]
[336259471,1724748646297,-500.0,0.00010994,2]
[336259473,1724748646306,-500.0,0.00010994,2]
[336259475,1724748646315,-500.0,0.00010994,2]
[336259477,1724748646324,-500.0,0.00010994,2]
[336259479,1724748646334,-500.0,0.00010994,2]
[336259481,1724748646346,-593.61,0.00010994,2]
[336259483,1724748646355,-500.0,0.00010994,2]
[336259485,1724748646364,-500.0,0.00010994,2]
[336259487,1724748646373,-500.0,0.00010994,2]
[336259489,1724748646383,-500.0,0.00010994,2]
[336259491,1724748646392,-500.0,0.00010994,2]
[336259493,1724748646401,-500.0,0.00010994,2]
[336259495,1724748646411,-500.0,0.00010994,2]
[336259497,1724748646423,-500.0,0.00010994,2]
[336259499,1724748646432,-500.0,0.00010994,2]
[336259501,1724748646442,-500.0,0.00010994,2]
[336259503,1724748646450,-500.0,0.00010994,2]
[336259505,1724748646461,-500.0,0.00010994,2]
[336259507,1724748646470,-500.0,0.00010994,2]
[336259509,1724748646479,-545.55,0.00010994,2]
[336259511,1724748646489,-500.0,0.00010994,2]
[336259513,1724748646499,-500.0,0.00010994,2]
[336259515,1724748646509,-500.0,0.00010994,2]
[336259517,1724748646518,-500.0,0.00010994,2]
[336259519,1724748646527,-524.74,0.00010994,2]
[336259521,1724748646537,-500.0,0.00010994,2]
[336259523,1724748646546,-500.0,0.00010994,2]
[336259525,1724748646555,-500.0,0.00010994,2]
[336259527,1724748646564,-500.0,0.00010994,2]
[336259529,1724748646572,-500.0,0.00010994,2]
[336259531,1724748646582,-1298.404923,0.00010994,2]
[336259533,1724748646591,-905.282683,0.00010994,2]
[336259535,1724748646600,-500.0,0.00010994,2]
[336259537,1724748646610,-555.43,0.00010994,2]
[336259539,1724748646619,-225.39,0.00010994,2]
[336259541,1724748646629,-500.0,0.00010994,2]
[336259543,1724748646638,-710.04,0.00010994,2]
[336259545,1724748646648,-500.0,0.00010994,2]
[336259547,1724748646657,-500.0,0.00010994,2]
[336259549,1724748646667,-500.0,0.00010994,2]
[336259551,1724748646677,-500.0,0.00010994,2]
[336259553,1724748646687,-500.0,0.00010994,2]
[336259555,1724748646697,-547.34998151,0.00010994,2]
[336259557,1724748646707,-1002.3,0.00010994,2]
[336259559,1724748646716,-500.0,0.00010994,2]
[336259561,1724748646726,-500.0,0.00010994,2]
[336259563,1724748646736,-500.0,0.00010994,2]
[336259565,1724748646746,-500.0,0.00010994,2]
[336259567,1724748646755,-500.0,0.00010994,2]
[336259569,1724748646766,-500.0,0.00010994,2]
[336259571,1724748646775,-313.14478655,0.00010994,2]
[336259573,1724748646785,-500.0,0.00010994,2]
[336259575,1724748646794,-500.0,0.00010994,2]
[336259577,1724748646804,-500.0,0.00010994,2]
[336259579,1724748646813,-500.0,0.00010994,2]
[336259581,1724748646822,-1285.75,0.00010994,2]
[336259583,1724748646831,-500.0,0.00010994,2]
[336259585,1724748646840,-500.0,0.00010994,2]
[336259587,1724748646849,-500.0,0.00010994,2]
[336259589,1724748646859,-1999.22,0.00010994,2]
[336259591,1724748646868,-500.0,0.00010994,2]
[336259593,1724748646878,-1286.44,0.00010994,2]
[336259595,1724748646887,-1080.35,0.00010994,2]
[336259597,1724748646896,-1426.12,0.00010994,2]
[336259599,1724748646905,-500.0,0.00010994,2]
[336259601,1724748646914,-500.0,0.00010994,2]
[336259602,1724748646923,-3197.89,0.00010994,2]
[336259604,1724748646932,-500.0,0.00010994,2]
[336259606,1724748646941,-500.0,0.00010994,2]
[336259608,1724748646951,-500.0,0.00010994,2]
[336259610,1724748646960,-1271.85,0.00010994,2]
[336259612,1724748646969,-520.84,0.00010994,2]
[336259614,1724748646979,-500.0,0.00010994,2]
[336259616,1724748646988,-500.0,0.00010994,2]
[336259618,1724748646997,-4618.91,0.00010994,2]
[336259620,1724748647007,-2050.73,0.00010994,2]
[336259638,1724748647173,-500.0,0.00010994,2]
[336259640,1724748647182,-1846.32,0.00010994,2]
[336259642,1724748647192,-500.0,0.00010994,2]
[336259644,1724748647201,-1361.27,0.00010994,2]
[336259646,1724748647210,-500.0,0.00010994,2]
[336259648,1724748647219,-635.77558082,0.00010994,2]
[336259650,1724748647229,-500.0,0.00010994,2]
[336259652,1724748647238,-1492.43,0.00010994,2]
[336259654,1724748647248,-507.24334128,0.00010994,2]
[336259656,1724748647258,-500.0,0.00010994,2]
[336259658,1724748647268,-500.0,0.00010994,2]
[336259660,1724748647277,-378.19735358,0.00010994,2]
[336259662,1724748647292,-373.44516669,0.00010994,2]
[336259665,1724748647313,-500.0,0.00010958,2]
[336259667,1724748647323,-1060.09201501,0.00010994,2]
[336259670,1724748647334,-1347.61299697,0.00010994,2]
[336259672,1724748647351,-190.82246775,0.00010994,2]
[336259674,1724748647361,-500.0,0.00010994,2]
[336259676,1724748647370,-122.96552552,0.00010994,2]
[336259681,1724748647407,-377.03447448,0.00010994,2]
[336259683,1724748647420,-500.0,0.00010994,2]
[336259685,1724748647429,-500.0,0.00010995,2]
[336259687,1724748647438,-500.0,0.00010995,2]
[336259689,1724748647448,-1043.36,0.00010995,2]
[336259691,1724748647458,-1090.54058657,0.00010995,2]
[336259693,1724748647469,-90.63941343,0.00010995,2]
[336259695,1724748647479,-477.49139319,0.00010995,2]
[336259697,1724748647492,-22.50860681,0.00010995,2]
[336259699,1724748647502,-296.87421004,0.00010995,2]
[336259701,1724748647513,-203.12578996,0.00010995,2]
[336259703,1724748647523,-740.81634534,0.00010995,2]
[336259706,1724748647540,-171.36365466,0.00010995,2]
[336259708,1724748647549,-232.10647233,0.00010995,2]
[336259710,1724748647560,-611.70352767,0.00010995,2]
[336259712,1724748647569,-500.0,0.00010995,2]
[336259714,1724748647579,-794.2,0.00010995,2]
[336259716,1724748647588,-703.32,0.00010995,2]
[336259717,1724748647597,-500.0,0.00010995,2]
[336259719,1724748647606,-500.0,0.00010995,2]
[336259721,1724748647616,-556.35,0.00010995,2]
[336259723,1724748647625,-500.0,0.00010995,2]
[336259725,1724748647635,-657.48,0.00010995,2]
[336259727,1724748647644,-500.0,0.00010995,2]
[336259729,1724748647654,-500.0,0.00010995,2]
[336259731,1724748647663,-554.33923797,0.00010995,2]
[336259733,1724748647672,-500.0,0.00010995,2]
[336259735,1724748647683,-250.51,0.00010995,2]
[336259737,1724748647693,-500.0,0.00010995,2]
[336259739,1724748647703,-500.0,0.00010995,2]
[336259741,1724748647713,-500.0,0.00010995,2]
[336259743,1724748647722,-500.0,0.00010995,2]
[336259745,1724748647731,-500.0,0.00010995,2]
[336259747,1724748647740,-500.0,0.00010995,2]
[336259749,1724748647750,-500.0,0.00010995,2]
[336259751,1724748647759,-500.0,0.00010995,2]
[336259753,1724748647779,-500.0,0.00010995,2]
[336259755,1724748647788,-500.0,0.00010995,2]
[336259757,1724748647797,-500.0,0.00010995,2]
[336259759,1724748647807,-500.0,0.00010995,2]
[336259761,1724748647816,-500.0,0.00010995,2]
[336259763,1724748647826,-500.0,0.00010995,2]
[336259765,1724748647835,-54.73359255,0.00010995,2]
[336259767,1724748647847,-445.26640745,0.00010995,2]
[336259769,1724748647857,-500.0,0.00010995,2]
[336259771,1724748647866,-493.94893469,0.00010995,2]
[336259797,1724748648113,-528.23664275,0.00010958,2]
[336259799,1724748648123,-261.75335725,0.00010958,2]
[336259801,1724748648135,-238.24664275,0.00010958,2]
[336259803,1724748648144,-500.0,0.00010958,2]
[336259805,1724748648154,-196.96819976,0.00010993,2]
[336259810,1724748648194,-500.0,0.00010958,2]
[336259812,1724748648203,-500.0,0.00010958,2]
[336259814,1724748648213,-303.03180024,0.00010993,2]
[336259816,1724748648223,-505.93296402,0.00010993,2]
[336259818,1724748648233,-501.4614659,0.00010994,2]
[336259820,1724748648243,-6.05106531,0.00010995,2]
[336259822,1724748648252,-107.02808078,0.00010995,2]
[336259824,1724748648266,-392.97191922,0.00010995,2]
[336259826,1724748648283,-500.0,0.00010995,2]
[336259828,1724748648292,-500.0,0.00010995,2]
[336259830,1724748648302,-500.0,0.00010995,2]
[336259832,1724748648311,-500.0,0.00010995,2]
[336259834,1724748648321,-500.0,0.00010995,2]
[336259836,1724748648330,-868.63,0.00010995,2]
[336259838,1724748648340,-500.0,0.00010995,2]
[336259840,1724748648349,-155.00808036,0.00010995,2]
[336259842,1724748648361,-344.99191964,0.00010995,2]
[336259844,1724748648371,-71.36807936,0.00010995,2]
[336259846,1724748648382,-428.63192064,0.00010995,2]
[336259848,1724748648391,-500.32999739,0.00010995,2]
[336259850,1724748648401,-503.53391653,0.00010995,2]
[336259852,1724748648413,-103.35739796,0.00010995,2]
[336259862,1724748648506,-396.64260204,0.00010995,2]
[336259864,1724748648515,-500.0,0.00010995,2]
[336259866,1724748648524,-510.41377457,0.00010995,2]
[336259868,1724748648534,-22.8339729,0.00010995,2]
[336259870,1724748648545,-332.84284023,0.00010995,2]
[336259872,1724748648556,-144.32318687,0.00010995,2]
[336259874,1724748648565,-462.68059752,0.00010995,2]
[336259876,1724748648576,-37.31940248,0.00010995,2]
[336259878,1724748648586,-1000.0,0.00010995,2]
[336259880,1724748648595,-500.0,0.00010995,2]
[336259882,1724748648604,-702.68059752,0.00010995,2]
[336259884,1724748648616,-629.33940248,0.00010995,2]
[336259886,1724748648625,-806.84,0.00010995,2]
[336259888,1724748648635,-977.42,0.00010995,2]
[336259890,1724748648644,-500.0,0.00010995,2]
[336259892,1724748648653,-207.82285408,0.00010995,2]
[336259902,1724748648742,-292.17714592,0.00010995,2]
[336259904,1724748648752,-500.0,0.00010995,2]
[336259906,1724748648762,-500.0,0.00010995,2]
[336259908,1724748648777,-986.63,0.00010995,2]
[336259910,1724748648787,-500.0,0.00010995,2]
[336259912,1724748648797,-500.0,0.00010995,2]
[336259914,1724748648807,-953.61,0.00010995,2]
[336259916,1724748648817,-500.0,0.00010995,2]
[336259918,1724748648827,-500.0,0.00010995,2]
[336259920,1724748648836,-500.0,0.00010995,2]
[336259922,1724748648845,-500.0,0.00010995,2]
[336259924,1724748648855,-518.76,0.00010995,2]
[336259926,1724748648865,-500.0,0.00010995,2]
[336259927,1724748648874,-500.0,0.00010995,2]
[336259929,1724748648883,-500.0,0.00010995,2]
[336259931,1724748648892,-500.0,0.00010995,2]
[336259933,1724748648902,-500.0,0.00010995,2]
[336259935,1724748648911,-500.0,0.00010995,2]
[336259937,1724748648921,-627.29,0.00010995,2]
[336259939,1724748648930,-644.96,0.00010995,2]
[336259941,1724748648940,-500.0,0.00010995,2]
[336259943,1724748648949,-500.0,0.00010995,2]
[336259944,1724748648959,-500.0,0.00010995,2]
[336259946,1724748648968,-500.0,0.00010995,2]
[336259948,1724748648978,-684.09,0.00010995,2]
[336259950,1724748648988,-500.0,0.00010995,2]
[336259952,1724748648997,-1014.627274,0.00010995,2]
[336259954,1724748649006,-6370.29,0.00010995,2]
[336259956,1724748649019,-500.0,0.00010995,2]
[336259958,1724748649028,-500.0,0.00010995,2]
[336259960,1724748649037,-500.0,0.00010995,2]
[336259962,1724748649047,-500.0,0.00010995,2]
[336259963,1724748649056,-500.0,0.00010995,2]
[336259964,1724748649066,-500.0,0.00010995,2]
[336259965,1724748649075,-500.0,0.00010996,2]
[336259966,1724748649084,-500.0,0.00010996,2]
[336259967,1724748649093,-500.0,0.00010996,2]
[336259968,1724748649103,-848.31,0.00010996,2]
[336259969,1724748649112,-500.0,0.00010996,2]
[336259970,1724748649121,-500.0,0.00010996,2]
[336259971,1724748649131,-500.0,0.00010996,2]
[336259972,1724748649140,-284.72082719,0.00010996,2]
[336259973,1724748649149,-500.0,0.00010996,2]
[336259974,1724748649159,-500.0,0.00010996,2]
[336259975,1724748649168,-500.0,0.00010996,2]
[336259976,1724748649177,-500.0,0.00010996,2]
[336259977,1724748649186,-500.0,0.00010996,2]
[336259979,1724748649196,-500.0,0.00010996,2]
[336259981,1724748649205,-500.0,0.00010996,2]
[336259983,1724748649214,-504.43,0.00010996,2]
[336259985,1724748649224,-500.0,0.00010996,2]
[336259987,1724748649233,-500.0,0.00010996,2]
[336259989,1724748649242,-500.0,0.00010996,2]
[336259991,1724748649251,-500.0,0.00010996,2]
[336259993,1724748649260,-875.66,0.00010996,2]
[336259995,1724748649270,-500.0,0.00010996,2]
[336259997,1724748649279,-500.0,0.00010996,2]
[336259999,1724748649289,-500.0,0.00010996,2]
[336260000,1724748649298,-500.0,0.00010996,2]
[336260002,1724748649307,-500.0,0.00010996,2]
[336260004,1724748649316,-523.59,0.00010996,2]
[336260006,1724748649325,-500.0,0.00010996,2]
[336260008,1724748649334,-500.0,0.00010996,2]
[336260010,1724748649344,-500.0,0.00010996,2]
[336260012,1724748649354,-500.0,0.00010996,2]
[336260014,1724748649363,-500.0,0.00010996,2]
[336260016,1724748649372,-400.0,0.00010996,2]
[336260018,1724748649382,-500.0,0.00010996,2]
[336260020,1724748649391,-500.0,0.00010996,2]
[336260021,1724748649401,-346.82510019,0.00010996,2]
[336260023,1724748649411,-500.0,0.00010996,2]
[336260025,1724748649422,-492.20407025,0.00010996,2]
[336260027,1724748649432,-500.0,0.00010996,2]
[336260029,1724748649441,-408.53579752,0.00010996,2]
[336260031,1724748649451,-500.0,0.00010996,2]
[336260033,1724748649460,-519.26,0.00010996,2]
[336260035,1724748649469,-500.0,0.00010996,2]
[336260037,1724748649478,-500.0,0.00010996,2]
[336260039,1724748649490,-500.0,0.00010996,2]
[336260041,1724748649499,-500.0,0.00010996,2]
[336260043,1724748649508,-500.0,0.00010996,2]
[336260044,1724748649518,-500.0,0.00010996,2]
[336260046,1724748649527,-500.0,0.00010996,2]
[336260048,1724748649536,-500.0,0.00010996,2]
[336260050,1724748649545,-500.0,0.00010996,2]
[336260052,1724748649555,-500.0,0.00010996,2]
[336260054,1724748649564,-500.0,0.00010996,2]
[336260056,1724748649573,-500.0,0.00010996,2]
[336260058,1724748649582,-500.0,0.00010996,2]
[336260060,1724748649591,-500.0,0.00010996,2]
[336260062,1724748649600,-514.0,0.00010996,2]
[336260064,1724748649610,-500.0,0.00010996,2]
[336260066,1724748649619,-348.03,0.00010996,2]
[336260068,1724748649628,-500.0,0.00010996,2]
[336260070,1724748649638,-500.0,0.00010996,2]
[336260072,1724748649647,-500.0,0.00010996,2]
[336260074,1724748649657,-500.0,0.00010996,2]
[336260076,1724748649666,-500.0,0.00010996,2]
[336260077,1724748649675,-500.0,0.00010996,2]
[336260079,1724748649685,-654.58,0.00010996,2]
[336260081,1724748649694,-158.44294677,0.00010996,2]
[336260083,1724748649703,-500.0,0.00010996,2]
[336260085,1724748649713,-687.52,0.00010996,2]
[336260087,1724748649722,-500.0,0.00010996,2]
[336260089,1724748649731,-500.0,0.00010996,2]
[336260091,1724748649740,-500.0,0.00010996,2]
[336260093,1724748649750,-833.33,0.00010996,2]
[336260094,1724748649759,-556.74,0.00010996,2]
[336260097,1724748649770,-500.0,0.00010996,2]
[336260099,1724748649778,-500.0,0.00010996,2]
[336260101,1724748649788,-500.0,0.00010996,2]
[336260103,1724748649797,-500.0,0.00010996,2]
[336260104,1724748649807,-500.0,0.00010996,2]
[336260106,1724748649816,-639.61694357,0.00010996,2]
[336260108,1724748649825,-500.0,0.00010996,2]
[336260110,1724748649835,-593.61,0.00010996,2]
[336260112,1724748649844,-257.30142712,0.00010996,2]
[336260113,1724748649854,-500.0,0.00010996,2]
[336260115,1724748649863,-500.0,0.00010996,2]
[336260117,1724748649873,-312.32,0.00010996,2]
[336260119,1724748649882,-586.85253766,0.00010996,2]
[336260121,1724748649892,-500.0,0.00010996,2]
[336260123,1724748649901,-512.08125524,0.00010996,2]
[336260125,1724748649911,-500.0,0.00010996,2]
[336260127,1724748649921,-500.0,0.00010996,2]
[336260129,1724748649931,-500.0,0.00010996,2]
[336260131,1724748649940,-348.83775313,0.00010996,2]
[336260133,1724748649948,-500.0,0.00010996,2]
[336260135,1724748649958,-435.53786903,0.00010996,2]
[336260137,1724748649968,-545.55,0.00010996,2]
[336260139,1724748649977,-500.0,0.00010996,2]
[336260141,1724748649987,-500.0,0.00010996,2]
[336260142,1724748649996,-500.0,0.00010996,2]
[336260144,1724748650005,-500.0,0.00010996,2]
[336260146,1724748650014,-500.0,0.00010996,2]
[336260148,1724748650023,-500.0,0.00010996,2]
[336260150,1724748650032,-524.74,0.00010996,2]
[336260152,1724748650043,-500.0,0.00010996,2]
[336260154,1724748650052,-500.0,0.00010996,2]
[336260156,1724748650061,-500.0,0.00010996,2]
[336260158,1724748650070,-500.0,0.00010996,2]
[336260159,1724748650080,-500.0,0.00010996,2]
[336260161,1724748650089,-500.0,0.00010996,2]
[336260163,1724748650098,-500.0,0.00010996,2]
[336260165,1724748650107,-1298.404923,0.00010996,2]
[336260167,1724748650117,-905.282683,0.00010996,2]
[336260169,1724748650126,-500.0,0.00010996,2]
[336260171,1724748650135,-500.0,0.00010996,2]
[336260173,1724748650144,-555.43,0.00010996,2]
[336260174,1724748650154,-500.0,0.00010996,2]
[336260176,1724748650163,-500.0,0.00010996,2]
[336260178,1724748650172,-500.0,0.00010996,2]
[336260180,1724748650181,-500.0,0.00010996,2]
[336260182,1724748650190,-500.0,0.00010996,2]
[336260184,1724748650199,-500.0,0.00010996,2]
[336260186,1724748650208,-710.04,0.00010996,2]
[336260188,1724748650218,-500.0,0.00010996,2]
[336260190,1724748650227,-500.0,0.00010996,2]
[336260192,1724748650236,-1709.9,0.00010996,2]
[336260194,1724748650246,-500.0,0.00010996,2]
[336260196,1724748650255,-500.0,0.00010996,2]
[336260197,1724748650264,-2987.16,0.00010996,2]
[336260199,1724748650274,-500.0,0.00010996,2]
[336260201,1724748650283,-500.0,0.00010996,2]
[336260203,1724748650293,-305.37873914,0.00010996,2]
[336260205,1724748650302,-500.0,0.00010996,2]
[336260207,1724748650311,-500.0,0.00010996,2]
[336260209,1724748650320,-1438.81,0.00010996,2]
[336260210,1724748650328,-500.0,0.00010996,2]
[336260212,1724748650339,-1002.3,0.00010996,2]
[336260215,1724748650348,-161.921334,0.00010996,2]
[336260216,1724748650357,-500.0,0.00010996,2]
[336260219,1724748650368,-500.0,0.00010996,2]
[336260220,1724748650377,-500.0,0.00010996,2]
[336260222,1724748650388,-500.0,0.00010996,2]
[336260224,1724748650398,-500.0,0.00010996,2]
[336260226,1724748650408,-1590.37,0.00010996,2]
[336260228,1724748650423,-500.0,0.00010996,2]
[336260230,1724748650432,-500.0,0.00010996,2]
[336260232,1724748650442,-500.0,0.00010996,2]
[336260235,1724748650452,-500.0,0.00010996,2]
[336260236,1724748650462,-500.0,0.00010996,2]
[336260238,1724748650471,-500.0,0.00010996,2]
[336260240,1724748650480,-500.0,0.00010996,2]
[336260242,1724748650490,-500.0,0.00010996,2]
[336260244,1724748650500,-500.0,0.00010996,2]
[336260246,1724748650509,-1285.75,0.00010996,2]
[336260248,1724748650519,-500.0,0.00010996,2]
[336260250,1724748650528,-500.0,0.00010996,2]
[336260266,1724748650691,-500.0,0.00010996,2]
[336260268,1724748650701,-500.0,0.00010996,2]
[336260270,1724748650711,-500.0,0.00010996,2]
[336260272,1724748650721,-500.0,0.00010996,2]
[336260274,1724748650730,-559.81511337,0.00010996,2]
[336260276,1724748650739,-500.0,0.00010996,2]
[336260278,1724748650748,-1999.22,0.00010996,2]
[336260279,1724748650759,-500.0,0.00010996,2]
[336260282,1724748650769,-1286.44,0.00010996,2]
[336260283,1724748650778,-1359.85170396,0.00010996,3]
[336260285,1724748650787,-1080.35,0.00010996,2]
[336260287,1724748650797,-1426.12,0.00010996,2]
[336260289,1724748650806,-500.0,0.00010996,2]
[336260291,1724748650815,-500.0,0.00010996,2]